bitfinex/quotes_SOLUSD_20240616
["timestamp","ask_amount","ask_price","bid_price","bid_amount"]
[1718530851734,2.5616,144.44,144.42,7.6856]
[1718530852051,5.67,144.43,144.42,15.3715]
[1718530852693,5.67,144.43,144.42,7.6856]
[1718530853712,5.67,144.43,144.42,15.3715]
[1718530853904,5.67,144.43,144.42,25.6193]
[1718530855151,5.67,144.43,144.36,26.0635]
[1718530855152,8.2318,144.43,144.41,2.562]
[1718530855425,5.67,144.42,144.41,7.6862]
[1718530855800,5.67,144.42,144.41,2.562]
[1718530856328,5.67,144.42,144.41,7.6862]
[1718530856627,5.67,144.42,144.41,2.562]
[1718530856832,5.67,144.42,144.41,2.5621]
[1718530857011,5.67,144.42,144.4,25.6222]
[1718530857416,5.67,144.42,144.41,7.6863]
[1718530857822,5.67,144.42,144.41,15.3727]
[1718530858220,5.67,144.42,144.41,7.6863]
[1718530858843,5.67,144.42,144.41,2.5621]
[1718530859524,8.2319,144.42,144.4,25.6222]
[1718530859710,8.2319,144.42,144.4,7.6868]
[1718530860138,8.2322,144.41,144.39,2.5624]
[1718530860443,8.2322,144.41,144.39,25.6243]
[1718530860444,5.67,144.41,144.39,25.6243]
[1718530860645,5.67,144.41,144.4,2.5623]
[1718530861006,8.2321,144.41,144.39,25.6243]
[1718530861207,8.2321,144.41,144.39,2.5625]
[1718530861208,5.67,144.4,144.39,2.5625]
[1718530862411,5.67,144.4,144.39,7.6875]
[1718530863540,5.67,144.4,144.39,25.625]
[1718530864544,7.686,144.42,144.39,25.625]
[1718530864545,5.67,144.41,144.39,25.625]
[1718530864845,8.2321,144.41,144.39,7.6875]
[1718530865250,25.6199,144.42,144.39,15.3749]
[1718530865423,5.67,144.41,144.39,15.3749]
[1718530865621,7.685,144.44,144.41,23.0587]
[1718530865948,5.67,144.43,144.41,25.6207]
[1718530866333,5.67,144.43,144.42,7.6858]
[1718530866529,5.67,144.43,144.41,23.0586]
[1718530866727,5.67,144.43,144.41,25.6205]
[1718530867348,8.2317,144.43,144.41,25.6205]
[1718530867551,8.2317,144.43,144.41,7.686]
[1718530867734,13.3553,144.43,144.41,2.5619]
[1718530869650,8.2317,144.43,144.41,7.6861]
[1718530871153,13.3553,144.43,144.41,2.5619]
[1718530871329,5.67,144.42,144.41,2.5619]
[1718530872576,5.67,144.42,144.4,25.6219]
[1718530872883,5.67,144.41,144.4,25.6219]
[1718530873470,13.3565,144.41,144.39,2.5624]
[1718530873651,21.0429,144.41,144.39,2.5624]
[1718530873854,13.3565,144.41,144.39,2.5624]
[1718530874064,5.67,144.4,144.39,7.6874]
[1718530875063,5.67,144.4,144.39,15.3749]
[1718530875660,5.67,144.4,144.39,25.6249]
[1718530877766,5.67,144.4,144.35,22.0716]
[1718530877767,5.67,144.4,144.38,7.6877]
[1718530877939,5.67,144.39,144.38,15.3756]
[1718530878259,5.67,144.4,144.39,2.5625]
[1718530879352,5.67,144.4,144.38,23.0635]
[1718530879548,5.67,144.4,144.39,2.5625]
[1718530880446,5.67,144.4,144.38,25.626]
[1718530881180,8.2323,144.4,144.38,25.626]
[1718530881349,8.2323,144.4,144.38,7.6875]
[1718530882065,5.67,144.4,144.38,7.6875]
[1718530882264,5.67,144.4,144.39,2.5625]
[1718530882462,5.67,144.4,144.38,15.3754]
[1718530882659,8.2323,144.4,144.38,15.3754]
[1718530882965,5.67,144.4,144.38,15.3754]
[1718530883380,8.2323,144.4,144.38,15.3754]
[1718530883885,8.2323,144.4,144.38,7.6875]
[1718530884455,23.0581,144.42,144.39,7.6873]
[1718530884667,13.3565,144.41,144.39,2.5623]
[1718530884868,5.67,144.4,144.39,2.5623]
[1718530885265,5.67,144.4,144.39,7.6873]
[1718530886477,5.67,144.4,144.39,15.3748]
[1718530886681,5.67,144.4,144.39,7.6873]
[1718530886984,5.67,144.4,144.38,7.6876]
[1718530887185,8.2323,144.4,144.38,7.6876]
[1718530887390,5.67,144.4,144.38,15.3756]
[1718530888089,5.67,144.4,144.39,15.375]
[1718530888388,5.67,144.43,144.42,2.5619]
[1718530888692,5.67,144.43,144.41,25.621]
[1718530888855,5.1227,144.46,144.39,5.67]
[1718530889190,13.3543,144.45,144.43,2.5616]
[1718530889491,23.0547,144.44,144.41,2.562]
[1718530889651,23.0547,144.44,144.4,7.6866]
[1718530889652,15.3709,144.43,144.4,25.6219]
[1718530889851,2.5619,144.42,144.4,5.1244]
[1718530890162,7.6858,144.42,144.39,25.6237]
[1718530890486,2.5619,144.42,144.4,2.5622]
[1718530890777,8.2319,144.42,144.4,2.5622]
[1718530890998,21.0417,144.42,144.39,25.6236]
[1718530891185,21.0419,144.42,144.39,17.9365]
[1718530891599,21.0419,144.42,144.39,25.6239]
[1718530891878,25.6185,144.43,144.4,15.3738]
[1718530892085,31.2885,144.43,144.4,15.3738]
[1718530892987,2.5619,144.42,144.4,7.6869]
[1718530893368,31.2885,144.43,144.4,7.6869]
[1718530893687,2.5619,144.42,144.4,7.6869]
[1718530894072,7.6859,144.42,144.39,23.0617]
[1718530894277,7.6859,144.42,144.4,2.5622]
[1718530894583,5.67,144.43,144.35,22.7566]
[1718530894806,8.2322,144.41,144.39,7.6873]
[1718530895099,2.5623,144.4,144.38,2.5626]
[1718530895302,8.2322,144.41,144.39,2.5624]
[1718530895593,5.67,144.41,144.39,15.3747]
[1718530895794,5.67,144.41,144.4,2.5623]
[1718530896002,2.562,144.42,144.4,7.6869]
[1718530896003,8.232,144.42,144.4,7.6869]
[1718530896374,7.6856,144.43,144.4,12.8114]
[1718530896698,8.2318,144.43,144.41,7.6863]
[1718530897088,8.2318,144.43,144.41,2.5621]
[1718530897265,13.3554,144.43,144.41,2.5621]
[1718530897469,2.562,144.42,144.4,7.6865]
[1718530897665,2.562,144.42,144.4,2.5621]
[1718530899013,2.562,144.42,144.4,7.6867]
[1718530899684,7.6859,144.42,144.4,2.5621]
[1718530900572,7.6856,144.43,144.41,2.5621]
[1718530900777,13.3555,144.43,144.41,2.5621]
[1718530901178,28.7262,144.43,144.4,7.6868]
[1718530901495,2.5619,144.42,144.4,7.6868]
[1718530901893,2.5619,144.42,144.4,2.5622]
[1718530902093,8.2319,144.42,144.4,2.5622]
[1718530902319,2.5619,144.42,144.4,7.6868]
[1718530902524,8.2319,144.42,144.4,7.6868]
[1718530903933,5.67,144.42,144.4,7.6868]
[1718530904121,8.232,144.42,144.4,2.5622]
[1718530904423,2.562,144.42,144.4,2.5622]
[1718530904610,8.232,144.42,144.4,2.5622]
[1718530905123,21.0419,144.42,144.39,25.6238]
[1718530905308,21.0419,144.42,144.4,2.5623]
[1718530905719,13.356,144.42,144.4,2.5623]
[1718530906216,2.5621,144.41,144.39,7.687]
[1718530906798,8.2321,144.41,144.39,7.687]
[1718530907032,5.67,144.41,144.35,22.7566]
[1718530907237,2.5623,144.4,144.38,2.5626]
[1718530908010,2.5623,144.4,144.38,7.6879]
[1718530908826,7.6869,144.4,144.38,2.5626]
[1718530909203,2.5623,144.4,144.38,7.6879]
[1718530909932,8.2323,144.4,144.38,2.5626]
[1718530910521,5.67,144.4,144.38,5.1253]
[1718530910732,13.3567,144.41,144.39,2.5624]
[1718530911227,13.3567,144.41,144.38,23.0639]
[1718530911421,21.0431,144.41,144.39,2.5624]
[1718530911606,2.5623,144.4,144.38,25.6264]
[1718530912232,31.2918,144.41,144.38,25.6264]
[1718530912633,2.5623,144.4,144.38,25.6264]
[1718530913107,2.5623,144.4,144.38,2.5625]
[1718530913612,2.5623,144.4,144.38,7.6878]
[1718530915042,7.687,144.4,144.38,2.5625]
[1718530915338,7.687,144.4,144.38,2.5626]
[1718530915511,13.357,144.4,144.38,2.5626]
[1718530915714,8.2323,144.4,144.38,7.6879]
[1718530916031,8.2323,144.4,144.38,2.5626]
[1718530916403,8.2323,144.4,144.38,7.6879]
[1718530917003,8.2323,144.4,144.38,2.5626]
[1718530919830,8.2323,144.4,144.38,7.6879]
[1718530920349,25.622,144.41,144.39,2.5625]
[1718530920521,31.292,144.41,144.39,2.5625]
[1718530920855,31.292,144.41,144.38,23.0639]
[1718530920856,31.292,144.41,144.38,25.6264]
[1718530921160,2.5623,144.4,144.38,17.9385]
[1718530921324,2.5623,144.4,144.38,7.6878]
[1718530922232,2.5623,144.4,144.38,2.5625]
[1718530923773,8.2323,144.4,144.38,2.5625]
[1718530925042,8.2323,144.4,144.38,7.6878]
[1718530925367,8.2323,144.4,144.38,15.3758]
[1718530925867,5.67,144.4,144.38,15.3758]
[1718530926067,8.2323,144.4,144.38,15.3758]
[1718530926672,8.2323,144.4,144.38,7.6878]
[1718530927839,13.3569,144.4,144.38,2.5625]
[1718530928045,8.2323,144.4,144.38,7.6878]
[1718530928544,8.2323,144.4,144.38,2.5625]
[1718530928742,13.3569,144.4,144.38,2.5625]
[1718530929240,23.0627,144.39,144.36,25.6292]
[1718530929445,31.2953,144.39,144.37,2.5628]
[1718530930068,13.3576,144.39,144.37,2.5628]
[1718530930271,31.2951,144.39,144.37,2.5628]
[1718530931077,5.67,144.38,144.31,22.0929]
[1718530931256,8.2329,144.37,144.35,2.5631]
[1718530931464,13.3586,144.37,144.35,2.5631]
[1718530931850,8.2329,144.37,144.35,7.6894]
[1718530933000,13.3586,144.37,144.35,2.5631]
[1718530933306,8.2329,144.37,144.35,15.3791]
[1718530933682,5.67,144.37,144.36,2.563]
[1718530933879,13.3581,144.38,144.36,2.563]
[1718530934766,21.0461,144.38,144.36,2.563]
[1718530935496,2.5629,144.37,144.35,7.6891]
[1718530935698,2.5629,144.37,144.35,15.3787]
[1718530935864,2.5629,144.37,144.35,7.6891]
[1718530936782,2.5629,144.37,144.35,2.563]
[1718530936783,15.3771,144.37,144.35,2.563]
[1718530936991,7.6886,144.37,144.35,2.563]
[1718530937589,2.5629,144.37,144.35,7.6894]
[1718530937891,7.6886,144.37,144.35,7.6894]
[1718530938694,2.5629,144.37,144.35,15.379]
[1718530940296,2.5629,144.37,144.34,10.253]
[1718530940297,2.563,144.36,144.34,25.6325]
[1718530940473,31.2987,144.37,144.35,2.5632]
[1718530940677,13.3587,144.37,144.35,2.5632]
[1718530940871,13.3587,144.37,144.35,7.6896]
[1718530941090,2.5629,144.37,144.35,7.6896]
[1718530941299,6.4714,144.41,144.38,2.5626]
[1718530941490,31.2936,144.4,144.38,2.5626]
[1718530941807,15.8268,144.42,144.36,12.8147]
[1718530941808,10.7951,144.39,144.36,12.8147]
[1718530942008,2.5627,144.38,144.36,25.6297]
[1718530942175,2.5627,144.38,144.36,7.6887]
[1718530942371,2.5627,144.38,144.36,2.5629]
[1718530942577,13.3581,144.38,144.36,2.5629]
[1718530942777,2.5628,144.37,144.35,7.6892]
[1718530943013,7.6885,144.37,144.35,7.6892]
[1718530943298,7.6885,144.37,144.35,2.563]
[1718530943518,21.0473,144.37,144.35,2.5631]
[1718530943676,8.2329,144.37,144.35,7.6895]
[1718530943866,8.2329,144.37,144.35,15.3791]
[1718530944080,2.5629,144.37,144.35,15.3791]
[1718530944381,13.3583,144.38,144.36,7.689]
[1718530944600,8.2328,144.38,144.36,7.689]
[1718530944910,8.2328,144.38,144.36,15.378]
[1718530945076,13.3581,144.38,144.36,5.126]
[1718530945279,8.2328,144.38,144.36,7.6889]
[1718530946267,2.5628,144.38,144.36,7.6889]
[1718530946605,8.2328,144.38,144.36,7.6889]
[1718530947617,13.3582,144.38,144.36,7.6889]
[1718530948110,21.0462,144.38,144.36,2.5629]
[1718530948302,13.3582,144.38,144.36,2.5629]
[1718530948993,8.2328,144.38,144.36,7.6889]
[1718530949488,2.5626,144.39,144.37,7.6885]
[1718530949806,5.67,144.4,144.39,2.5625]
[1718530950023,2.5623,144.4,144.38,17.9383]
[1718530950192,7.6869,144.4,144.38,2.5625]
[1718530950393,15.3738,144.4,144.38,2.5625]
[1718530950623,21.0438,144.4,144.38,2.5625]
[1718530950811,7.6869,144.4,144.38,2.5625]
[1718530950990,21.0438,144.4,144.38,2.5625]
[1718530952115,21.0438,144.4,144.38,2.5626]
[1718530952116,31.2932,144.4,144.38,2.5626]
[1718530952315,31.2932,144.4,144.37,23.0649]
[1718530952316,2.5625,144.39,144.37,25.6276]
[1718530952717,31.2932,144.4,144.38,2.5626]
[1718530952919,23.6063,144.4,144.38,2.5626]
[1718530953122,5.67,144.4,144.39,2.5624]
[1718530953327,5.67,144.4,144.39,7.6874]
[1718530953506,13.3567,144.41,144.39,2.5624]
[1718530954015,21.0431,144.41,144.39,2.5624]
[1718530954416,2.5623,144.4,144.39,2.5624]
[1718530954737,2.5623,144.4,144.39,2.5625]
[1718530955123,2.5623,144.4,144.38,25.6259]
[1718530956049,31.2918,144.41,144.39,2.5625]
[1718530956414,15.8268,144.42,144.38,2.5625]
[1718530956415,28.7311,144.4,144.38,2.5625]
[1718530956714,13.3571,144.4,144.38,7.6879]
[1718530956914,5.67,144.4,144.39,2.5625]
[1718530957126,8.2323,144.4,144.39,2.5625]
[1718530957331,8.2323,144.4,144.38,25.6263]
[1718530957510,31.2921,144.41,144.39,2.5624]
[1718530957718,2.5623,144.4,144.38,7.6878]
[1718530957916,7.6869,144.4,144.38,7.6878]
[1718530958318,7.6869,144.4,144.38,2.5625]
[1718530958841,21.0438,144.4,144.38,2.5625]
[1718530960535,28.7308,144.4,144.37,23.0646]
[1718530960712,2.5625,144.39,144.37,7.6881]
[1718530961214,7.6875,144.39,144.37,2.5627]
[1718530961408,7.6875,144.39,144.36,23.0663]
[1718530961409,10.2506,144.38,144.36,2.5629]
[1718530961608,15.376,144.38,144.36,2.5629]
[1718530962135,2.5628,144.37,144.35,7.6892]
[1718530962341,2.5628,144.37,144.35,15.3788]
[1718530962834,23.0642,144.38,144.35,23.0685]
[1718530963031,2.5628,144.37,144.35,25.6315]
[1718530963225,25.627,144.38,144.35,23.0685]
[1718530963407,25.627,144.38,144.36,2.5629]
[1718530963611,8.2328,144.38,144.36,15.3778]
[1718530963843,7.6881,144.38,144.36,7.6888]
[1718530964133,2.5628,144.38,144.36,15.3778]
[1718530964851,2.5628,144.38,144.36,7.6888]
[1718530965023,13.3586,144.37,144.35,2.5631]
[1718530965219,21.0473,144.37,144.35,2.5631]
[1718530965419,13.3586,144.37,144.35,2.5631]
[1718530966161,13.3591,144.36,144.34,5.1267]
[1718530966348,13.3591,144.36,144.34,7.6899]
[1718530967140,8.2331,144.36,144.34,7.6899]
[1718530967530,8.2331,144.36,144.34,15.38]
[1718530968230,5.67,144.36,144.34,15.38]
[1718530968848,8.233,144.36,144.34,15.38]
[1718530969042,5.67,144.36,144.35,2.5632]
[1718530969256,13.3589,144.37,144.35,2.5632]
[1718530970054,21.0475,144.37,144.34,25.6335]
[1718530970235,2.5629,144.37,144.35,2.5631]
[1718530970441,2.5628,144.38,144.36,2.563]
[1718530970736,2.5628,144.38,144.36,7.689]
[1718530970737,8.2328,144.38,144.36,7.689]
[1718530971137,7.6881,144.38,144.36,2.563]
[1718530971526,23.0643,144.38,144.35,23.0679]
[1718530971728,25.6271,144.38,144.36,2.563]
[1718530971951,7.6883,144.38,144.36,2.563]
[1718530972760,2.5628,144.37,144.35,7.6894]
[1718530974534,5.126,144.36,144.28,52.58471763]
[1718530974734,25.6307,144.36,144.34,2.5633]
[1718530974964,7.6891,144.36,144.34,2.5633]
[1718530975580,2.5631,144.36,144.34,7.69]
[1718530975860,2.5631,144.36,144.34,15.3801]
[1718530976051,2.5631,144.36,144.34,7.69]
[1718530976562,2.5631,144.36,144.34,15.3801]
[1718530976788,2.5631,144.36,144.34,7.69]
[1718530977366,2.5631,144.36,144.34,15.3801]
[1718530977776,2.5631,144.36,144.34,7.69]
[1718530978341,21.0477,144.37,144.35,2.5631]
[1718530978687,8.2328,144.37,144.35,25.6317]
[1718530978846,13.3585,144.37,144.35,2.563]
[1718530979040,13.3585,144.37,144.34,5.1265]
[1718530979041,2.563,144.36,144.34,7.6897]
[1718530979360,31.2985,144.37,144.34,23.0701]
[1718530979550,31.2985,144.37,144.35,2.5631]
[1718530979751,31.2985,144.37,144.34,2.5633]
[1718530979752,7.6893,144.36,144.34,2.5633]
[1718530979975,25.6306,144.36,144.33,25.6349]
[1718530980184,25.6306,144.36,144.34,2.5633]
[1718530980480,2.5631,144.36,144.34,15.3801]
[1718530980681,23.0647,144.38,144.35,12.8158]
[1718530980861,8.2328,144.37,144.35,15.3788]
[1718530981185,8.2328,144.37,144.35,7.6893]
[1718530981394,8.2328,144.37,144.35,2.5631]
[1718530981395,13.3586,144.37,144.35,2.5631]
[1718530982267,2.563,144.36,144.34,25.6329]
[1718530983088,31.2988,144.37,144.35,2.5632]
[1718530983387,31.2988,144.37,144.34,23.0697]
[1718530983388,31.2988,144.37,144.34,25.6329]
[1718530983594,2.563,144.36,144.34,25.6329]
[1718530984295,2.563,144.36,144.34,7.6897]
[1718530985293,2.563,144.36,144.34,15.3798]
[1718530985471,5.67,144.37,144.35,15.379]
[1718530985671,31.2974,144.38,144.35,23.0685]
[1718530985869,31.2974,144.38,144.35,25.6315]
[1718530985870,2.5628,144.37,144.35,25.6315]
[1718530986373,2.5628,144.37,144.35,17.942]
[1718530986592,2.5628,144.37,144.35,7.6892]
[1718530991502,5.1256,144.38,144.35,7.6896]
[1718530991803,6.6015,144.4,144.37,7.6883]
[1718530991804,7.6876,144.39,144.37,7.6883]
[1718530992111,15.3751,144.39,144.37,2.5627]
[1718530992393,2.5626,144.38,144.36,25.6296]
[1718530992617,7.6879,144.38,144.36,7.6887]
[1718530992829,7.6879,144.38,144.36,2.5629]
[1718530993127,15.3759,144.38,144.36,2.5629]
[1718530994126,7.6879,144.38,144.36,2.5629]
[1718530994309,7.6879,144.38,144.35,23.068]
[1718530994310,2.563,144.36,144.34,7.6898]
[1718530994506,2.563,144.36,144.34,15.3799]
[1718530995016,2.563,144.36,144.35,2.5632]
[1718530995219,13.3589,144.37,144.35,2.5632]
[1718530995722,15.3782,144.36,144.34,2.5633]
[1718530996242,21.0482,144.36,144.34,2.5633]
[1718530996428,13.3591,144.36,144.34,2.5633]
[1718530996927,8.2331,144.36,144.34,15.3801]
[1718530997417,5.67,144.36,144.35,2.5632]
[1718530997630,31.2995,144.37,144.35,2.5632]
[1718530998529,13.3589,144.37,144.35,7.6896]
[1718530999141,31.2992,144.37,144.35,2.5631]
[1718530999301,13.3588,144.37,144.35,2.5631]
[1718531001607,13.3588,144.37,144.35,7.6895]
[1718531001925,17.9393,144.38,144.36,7.689]
[1718531001926,7.6881,144.38,144.36,7.689]
[1718531002114,8.2328,144.38,144.36,7.689]
[1718531002433,2.5628,144.38,144.36,7.689]
[1718531002618,8.2328,144.38,144.36,7.689]
[1718531003536,21.0463,144.38,144.36,2.563]
[1718531003756,2.5628,144.37,144.36,2.563]
[1718531004135,6.6039,144.44,144.35,5.67]
[1718531004136,12.8116,144.4,144.35,5.67]
[1718531004324,2.5625,144.39,144.37,15.3768]
[1718531004528,23.061,144.4,144.37,25.6282]
[1718531004732,7.6875,144.39,144.37,2.5627]
[1718531005540,25.6235,144.4,144.37,12.8139]
[1718531005729,7.6869,144.4,144.38,2.5625]
[1718531006035,7.6869,144.4,144.38,7.6878]
[1718531006746,15.374,144.4,144.38,2.5625]
[1718531006943,7.687,144.4,144.38,7.6878]
[1718531008248,7.687,144.4,144.38,2.5625]
[1718531008422,15.374,144.4,144.38,2.5625]
[1718531008629,2.5625,144.39,144.37,25.6273]
[1718531009551,7.6875,144.39,144.37,7.6881]
[1718531010127,12.8126,144.39,144.37,2.5627]
[1718531010459,15.3752,144.39,144.37,2.5627]
[1718531010632,7.6876,144.39,144.37,2.5627]
[1718531011728,7.6876,144.39,144.37,7.6884]
[1718531012556,23.0626,144.39,144.37,2.5627]
[1718531012738,7.6875,144.39,144.37,7.6884]
[1718531013278,2.5625,144.39,144.37,15.3769]
[1718531013975,7.6875,144.39,144.37,7.6884]
[1718531014641,2.5625,144.39,144.37,15.3769]
[1718531015578,15.375,144.39,144.37,2.5627]
[1718531015892,7.6875,144.39,144.37,7.6883]
[1718531017370,17.9357,144.41,144.38,5.1253]
[1718531017571,17.9357,144.41,144.38,12.8131]
[1718531017572,28.7301,144.41,144.38,12.8131]
[1718531017873,2.5623,144.4,144.39,2.5624]
[1718531019177,2.5623,144.4,144.39,2.5625]
[1718531019385,25.6225,144.41,144.39,2.5625]
[1718531019693,2.5624,144.4,144.38,25.6261]
[1718531021164,15.3741,144.4,144.38,2.5625]
[1718531021566,15.3741,144.4,144.38,7.6878]
[1718531021779,7.6871,144.4,144.38,7.6878]
[1718531024089,2.5625,144.39,144.38,2.5625]
[1718531024253,25.6234,144.4,144.38,2.5625]
[1718531024461,7.6871,144.4,144.38,7.6878]
[1718531024660,7.6871,144.4,144.38,15.3758]
[1718531024856,15.374,144.4,144.38,7.6878]
[1718531025084,15.374,144.4,144.38,2.5625]
[1718531025494,15.374,144.4,144.38,7.6878]
[1718531026386,7.6871,144.4,144.38,7.6878]
[1718531026589,15.3741,144.4,144.38,2.5625]
[1718531026884,15.3741,144.4,144.38,7.6878]
[1718531027093,7.6871,144.4,144.38,7.6878]
[1718531027389,7.6871,144.4,144.38,15.3757]
[1718531027390,2.5624,144.4,144.38,15.3757]
[1718531028203,7.687,144.4,144.38,15.3758]
[1718531028500,7.6875,144.39,144.37,7.6881]
[1718531029486,23.6068,144.4,144.38,7.6877]
[1718531029487,2.5624,144.4,144.38,7.6877]
[1718531029683,15.3742,144.4,144.38,2.5625]
[1718531029888,2.5624,144.4,144.39,2.5625]
[1718531030084,2.5624,144.4,144.38,23.064]
[1718531030298,7.687,144.4,144.38,25.6265]
[1718531030601,8.2322,144.41,144.39,12.8124]
[1718531030775,13.3565,144.41,144.39,25.6247]
[1718531031369,8.2322,144.41,144.39,5.125]
[1718531031566,13.3565,144.41,144.39,15.3748]
[1718531032696,7.6865,144.41,144.39,7.6874]
[1718531032993,15.3729,144.41,144.39,7.6874]
[1718531033202,7.6865,144.41,144.39,7.6874]
[1718531033496,25.6217,144.41,144.39,2.5624]
[1718531033998,23.0595,144.41,144.39,2.5624]
[1718531034495,25.6217,144.41,144.39,2.5624]
[1718531035000,2.5623,144.4,144.39,2.5624]
[1718531035503,2.5623,144.4,144.38,25.6256]
[1718531036113,2.5623,144.4,144.39,2.5625]
[1718531036798,31.2917,144.41,144.39,2.5625]
[1718531037500,2.5623,144.4,144.39,2.5625]
[1718531037679,31.2917,144.41,144.39,2.5625]
[1718531039694,31.2917,144.41,144.39,7.6875]
[1718531040097,15.374,144.4,144.38,7.6877]
[1718531040305,2.5623,144.4,144.38,15.3757]
[1718531041078,31.2921,144.41,144.39,2.5624]
[1718531041405,21.0435,144.41,144.39,7.6873]
[1718531041779,2.5625,144.39,144.38,2.5626]
[1718531042084,31.2936,144.4,144.38,2.5626]
[1718531042284,13.3572,144.4,144.38,2.5626]
[1718531042699,13.3572,144.4,144.38,7.6878]
[1718531044208,13.3572,144.4,144.38,15.3758]
[1718531045193,13.3572,144.4,144.38,7.6878]
[1718531045502,8.2324,144.4,144.38,12.8131]
[1718531045707,28.7301,144.41,144.39,2.5624]
[1718531046014,31.2924,144.41,144.39,2.5624]
[1718531046197,31.2924,144.41,144.39,7.6873]
[1718531046805,25.6224,144.41,144.39,7.6873]
[1718531047012,31.2924,144.41,144.39,7.6873]
[1718531047188,31.2923,144.41,144.39,7.6873]
[1718531047388,13.3567,144.41,144.39,15.3748]
[1718531047905,13.3567,144.41,144.39,7.6873]
[1718531049612,28.7296,144.41,144.39,2.5624]
[1718531049908,31.2918,144.41,144.39,2.5624]
[1718531050313,31.2918,144.41,144.39,7.6873]
[1718531050611,5.67,144.4,144.39,7.6873]
[1718531051508,5.67,144.4,144.39,2.5624]
[1718531051712,8.2323,144.4,144.39,2.5624]
[1718531053023,5.67,144.4,144.39,2.5624]
[1718531053821,8.2323,144.4,144.39,2.5625]
[1718531053998,5.67,144.4,144.39,2.5625]
[1718531054197,8.2323,144.4,144.38,25.6258]
[1718531055020,8.2323,144.4,144.39,2.5625]
[1718531055995,2.5625,144.39,144.38,2.5626]
[1718531056192,2.5625,144.39,144.32,21.5959]
[1718531056193,23.6083,144.39,144.32,21.5959]
[1718531056400,5.67,144.38,144.37,7.6885]
[1718531056615,5.67,144.38,144.37,25.6284]
[1718531056939,5.67,144.39,144.38,15.3759]
[1718531057227,2.5624,144.4,144.39,2.5624]
[1718531057228,8.2323,144.4,144.39,2.5624]
[1718531057394,5.67,144.4,144.39,2.5624]
[1718531057899,8.2323,144.4,144.39,2.5625]
[1718531058112,5.67,144.4,144.39,2.5625]
[1718531058315,8.2323,144.4,144.38,25.6265]
[1718531059308,13.3569,144.4,144.38,7.6878]
[1718531060194,31.2934,144.4,144.38,2.5625]
[1718531060395,2.5625,144.39,144.37,25.6274]
[1718531060590,28.7328,144.39,144.36,12.8147]
[1718531060816,28.7328,144.39,144.37,2.5628]
[1718531060817,31.2954,144.39,144.37,2.5628]
[1718531061622,2.5626,144.38,144.37,2.5628]
[1718531064403,7.6879,144.38,144.36,17.9406]
[1718531064712,28.7342,144.38,144.36,2.5628]
[1718531064912,31.297,144.38,144.36,2.5628]
[1718531065431,31.297,144.38,144.36,7.6888]
[1718531065628,13.3581,144.38,144.36,7.6888]
[1718531066714,8.2328,144.38,144.36,15.3778]
[1718531067648,8.2328,144.38,144.37,2.5628]
[1718531067831,5.67,144.38,144.37,2.5628]
[1718531069634,8.2326,144.38,144.37,2.5628]
[1718531070142,8.2326,144.38,144.36,25.6299]
[1718531070349,8.2326,144.38,144.36,23.0671]